[Event "Titled Tuesday Blitz November 08 Early 2022"]
[White "Kosakowski, Jakub"]
[Black "Forgacs, Attila Jr."]
[WhiteFideId "1185080"]
[BlackFideId "773654"]
[WhiteElo "2463"]
[BlackElo "2168"]
[Result "1-0"]
[Round "01"]
[TimeControl "180+1"]
[Date "2022.11.09"]
[WhiteClock "0:01:17"]
[BlackClock "0:01:15"]

1. e4 {[%clk 0:02:48]}  e5 {[%clk 0:02:59]} 2. Nf3 {[%clk 0:02:48]}  Nc6 {[%clk 0:02:59]} 3. Bb5 {[%clk 0:02:48]}  a6 {[%clk 0:02:59]} 4. Ba4 {[%clk 0:02:48]}  Nf6 {[%clk 0:02:56]} 5. O-O {[%clk 0:02:49]}  Be7 {[%clk 0:02:57]} 6. Re1 {[%clk 0:02:49]}  b5 {[%clk 0:02:58]} 7. Bb3 {[%clk 0:02:49]}  O-O {[%clk 0:02:59]} 8. c3 {[%clk 0:02:49]}  d5 {[%clk 0:02:59]} 9. exd5 {[%clk 0:02:49]}  Nxd5 {[%clk 0:03:00]} 10. Nxe5 {[%clk 0:02:50]}  Nxe5 {[%clk 0:03:01]} 11. Rxe5 {[%clk 0:02:50]}  c6 {[%clk 0:03:02]} 12. d3 {[%clk 0:02:51]}  Bd6 {[%clk 0:03:02]} 13. Re1 {[%clk 0:02:51]}  Qh4 {[%clk 0:03:02]} 14. g3 {[%clk 0:02:50]}  Qh3 {[%clk 0:03:03]} 15. Re4 {[%clk 0:02:50]}  Qf5 {[%clk 0:03:03]} 16. Nd2 {[%clk 0:02:41]}  Qg6 {[%clk 0:02:59]} 17. Nf3 {[%clk 0:02:35]}  f5 {[%clk 0:02:55]} 18. Ne5 {[%clk 0:02:28]}  Qf6 {[%clk 0:02:43]} 19. Nxc6 {[%clk 0:02:20]}  fxe4 {[%clk 0:02:43]} 20. Bxd5+ {[%clk 0:02:20]}  Kh8 {[%clk 0:02:44]} 21. Be3 {[%clk 0:02:20]}  exd3 {[%clk 0:02:27]} 22. Qxd3 {[%clk 0:02:12]}  Bf5 {[%clk 0:02:23]} 23. Be4 {[%clk 0:02:11]}  Bxe4 {[%clk 0:02:20]} 24. Qxe4 {[%clk 0:02:12]}  Rae8 {[%clk 0:02:21]} 25. Qg2 {[%clk 0:02:08]}  Bxg3 {[%clk 0:02:09]} 26. hxg3 {[%clk 0:02:04]}  Re6 {[%clk 0:02:01]} 27. Nd4 {[%clk 0:02:00]}  Rd6 {[%clk 0:02:00]} 28. Re1 {[%clk 0:01:56]}  b4 {[%clk 0:01:55]} 29. Bf4 {[%clk 0:01:55]}  Rb6 {[%clk 0:01:47]} 30. Qd5 {[%clk 0:01:50]}  bxc3 {[%clk 0:01:46]} 31. bxc3 {[%clk 0:01:50]}  Rb2 {[%clk 0:01:40]} 32. Re6 {[%clk 0:01:43]}  Qf7 {[%clk 0:01:37]} 33. Qe4 {[%clk 0:01:32]}  Rxa2 {[%clk 0:01:32]} 34. Kg2 {[%clk 0:01:26]}  a5 {[%clk 0:01:30]} 35. Re7 {[%clk 0:01:24]}  Qg6 {[%clk 0:01:25]} 36. Qxg6 {[%clk 0:01:18]}  hxg6 {[%clk 0:01:26]} 37. Ne6 {[%clk 0:01:18]}  Re2 {[%clk 0:01:15]} 38. Nxf8 {[%clk 0:01:17]}  Rxe7 {[%clk 0:01:15]} 39. Nxg6+ {[%clk 0:01:17]} 1-0


[Site "https://www.chess.com"]

[Event "Titled Tuesday Blitz November 08 Early 2022"]
[White "Koziorowicz, Michal"]
[Black "Jarocka, Liwia"]
[WhiteFideId "21809194"]
[BlackFideId "21807558"]
[WhiteElo "2174"]
[BlackElo "1989"]
[Result "1-0"]
[Round "01"]
[TimeControl "180+1"]
[Date "2022.11.09"]
[WhiteClock "0:02:00"]
[BlackClock "0:00:15"]

1. c3 {[%clk 0:02:59]}  h5 {[%clk 0:02:58]} 2. Qa4 {[%clk 0:02:58]}  g6 {[%clk 0:02:58]} 3. d4 {[%clk 0:02:57]}  Bg7 {[%clk 0:02:57]} 4. Nf3 {[%clk 0:02:57]}  a5 {[%clk 0:02:58]} 5. e4 {[%clk 0:02:57]}  b6 {[%clk 0:02:58]} 6. Bg5 {[%clk 0:02:56]}  Bb7 {[%clk 0:02:58]} 7. Nbd2 {[%clk 0:02:57]}  Nf6 {[%clk 0:02:57]} 8. Bd3 {[%clk 0:02:54]}  O-O {[%clk 0:02:54]} 9. O-O {[%clk 0:02:54]}  c5 {[%clk 0:02:42]} 10. Rfe1 {[%clk 0:02:49]}  d6 {[%clk 0:02:33]} 11. Rad1 {[%clk 0:02:45]}  Bc6 {[%clk 0:02:17]} 12. Qc2 {[%clk 0:02:44]}  Na6 {[%clk 0:01:54]} 13. e5 {[%clk 0:02:43]}  dxe5 {[%clk 0:01:49]} 14. dxe5 {[%clk 0:02:44]}  Nd5 {[%clk 0:01:42]} 15. Nf1 {[%clk 0:02:31]}  Qc7 {[%clk 0:01:38]} 16. Ng3 {[%clk 0:02:28]}  e6 {[%clk 0:01:36]} 17. Qe2 {[%clk 0:02:22]}  Qb7 {[%clk 0:01:32]} 18. Nh4 {[%clk 0:02:21]}  b5 {[%clk 0:01:19]} 19. Nxh5 {[%clk 0:02:20]}  gxh5 {[%clk 0:01:14]} 20. Qxh5 {[%clk 0:02:21]}  f5 {[%clk 0:01:10]} 21. exf6 {[%clk 0:02:20]}  Nxf6 {[%clk 0:01:09]} 22. Bxf6 {[%clk 0:02:20]}  Rxf6 {[%clk 0:01:06]} 23. Bh7+ {[%clk 0:02:02]}  Kf8 {[%clk 0:00:57]} 24. Ng6+ {[%clk 0:02:03]}  Rxg6 {[%clk 0:00:50]} 25. Qxg6 {[%clk 0:02:04]}  Bxg2 {[%clk 0:00:22]} 26. Qxg2 {[%clk 0:02:03]}  Qxg2+ {[%clk 0:00:20]} 27. Kxg2 {[%clk 0:02:04]}  b4 {[%clk 0:00:20]} 28. Rxe6 {[%clk 0:02:04]}  bxc3 {[%clk 0:00:19]} 29. bxc3 {[%clk 0:02:03]}  Bxc3 {[%clk 0:00:20]} 30. Rd7 {[%clk 0:02:01]}  Bd4 {[%clk 0:00:16]} 31. Rg6 {[%clk 0:02:00]}  Ke8 {[%clk 0:00:15]} 32. Rb7 {[%clk 0:02:00]} 1-0


[Site "https://www.chess.com"]

[Event "Titled Tuesday Blitz November 08 Early 2022"]
[White "Lawson, Eric"]
[Black "Kovalenko, Igor"]
[WhiteFideId "2604116"]
[BlackFideId "14117908"]
[WhiteElo "2490"]
[BlackElo "2574"]
[Result "1-0"]
[Round "01"]
[TimeControl "180+1"]
[Date "2022.11.09"]
[WhiteClock "0:00:51"]
[BlackClock "0:01:34"]

1. e4 {[%clk 0:02:58]}  c5 {[%clk 0:02:59]} 2. Nf3 {[%clk 0:02:57]}  e6 {[%clk 0:02:59]} 3. g3 {[%clk 0:02:57]}  Nc6 {[%clk 0:02:56]} 4. Bg2 {[%clk 0:02:57]}  Nf6 {[%clk 0:02:56]} 5. Nc3 {[%clk 0:02:54]}  e5 {[%clk 0:02:55]} 6. O-O {[%clk 0:02:53]}  Be7 {[%clk 0:02:56]} 7. d3 {[%clk 0:02:52]}  O-O {[%clk 0:02:56]} 8. Re1 {[%clk 0:02:47]}  d6 {[%clk 0:02:56]} 9. h3 {[%clk 0:02:46]}  h6 {[%clk 0:02:55]} 10. a3 {[%clk 0:02:39]}  Be6 {[%clk 0:02:54]} 11. Rb1 {[%clk 0:02:39]}  Qd7 {[%clk 0:02:54]} 12. Kh2 {[%clk 0:02:38]}  a5 {[%clk 0:02:53]} 13. Bd2 {[%clk 0:02:32]}  a4 {[%clk 0:02:53]} 14. Ng1 {[%clk 0:02:24]}  Rfb8 {[%clk 0:02:52]} 15. Nd5 {[%clk 0:02:23]}  b5 {[%clk 0:02:53]} 16. c3 {[%clk 0:02:21]}  Bd8 {[%clk 0:02:51]} 17. f4 {[%clk 0:02:20]}  exf4 {[%clk 0:02:46]} 18. gxf4 {[%clk 0:02:17]}  Bxd5 {[%clk 0:02:46]} 19. exd5 {[%clk 0:02:17]}  Ne7 {[%clk 0:02:47]} 20. c4 {[%clk 0:02:15]}  bxc4 {[%clk 0:02:43]} 21. dxc4 {[%clk 0:02:15]}  Ng6 {[%clk 0:02:43]} 22. Ne2 {[%clk 0:02:06]}  Nh7 {[%clk 0:02:39]} 23. Nc3 {[%clk 0:02:04]}  Bh4 {[%clk 0:02:39]} 24. Rf1 {[%clk 0:01:59]}  Bf6 {[%clk 0:02:36]} 25. Nb5 {[%clk 0:01:58]}  Nh4 {[%clk 0:02:36]} 26. Be4 {[%clk 0:01:56]}  Nf8 {[%clk 0:02:35]} 27. Qg4 {[%clk 0:01:56]}  Qd8 {[%clk 0:02:25]} 28. Rg1 {[%clk 0:01:55]}  Nhg6 {[%clk 0:02:22]} 29. Rg3 {[%clk 0:01:42]}  Kh8 {[%clk 0:02:22]} 30. Kh1 {[%clk 0:01:36]}  Rb7 {[%clk 0:02:20]} 31. Qh5 {[%clk 0:01:27]}  Re7 {[%clk 0:02:13]} 32. Bd3 {[%clk 0:01:24]}  Qd7 {[%clk 0:01:51]} 33. Rbg1 {[%clk 0:01:24]}  Rae8 {[%clk 0:01:50]} 34. f5 {[%clk 0:01:15]}  Re2 {[%clk 0:01:48]} 35. Bxh6 {[%clk 0:01:08]}  gxh6 {[%clk 0:01:40]} 36. Qxh6+ {[%clk 0:01:09]}  Kg8 {[%clk 0:01:41]} 37. fxg6 {[%clk 0:01:07]}  R8e4 {[%clk 0:01:35]} 38. Bxe2 {[%clk 0:01:01]}  Rxe2 {[%clk 0:01:34]} 39. gxf7+ {[%clk 0:00:56]}  Kxf7 {[%clk 0:01:35]} 40. Qh5+ {[%clk 0:00:57]}  Ke7 {[%clk 0:01:33]} 41. Qxe2+ {[%clk 0:00:57]}  Kd8 {[%clk 0:01:34]} 42. Qg4 {[%clk 0:00:51]} 1-0


[Site "https://www.chess.com"]

[Event "Titled Tuesday Blitz November 08 Early 2022"]
[White "Lehtosaari, Mauri"]
[Black "Xiong, Jeffery"]
[WhiteFideId "501999"]
[BlackFideId "2047640"]
[WhiteElo "2506"]
[BlackElo "2725"]
[Result "0-1"]
[Round "01"]
[TimeControl "180+1"]
[Date "2022.11.08"]
[WhiteClock "0:00:01"]
[BlackClock "0:00:06"]

1. d4 {[%clk 0:02:59]}  c5 {[%clk 0:02:57]} 2. e3 {[%clk 0:02:59]}  Na6 {[%clk 0:02:53]} 3. Nf3 {[%clk 0:02:59]}  Nf6 {[%clk 0:02:52]} 4. c4 {[%clk 0:02:58]}  cxd4 {[%clk 0:02:49]} 5. exd4 {[%clk 0:02:51]}  d5 {[%clk 0:02:49]} 6. Nc3 {[%clk 0:02:50]}  Nc7 {[%clk 0:02:49]} 7. h3 {[%clk 0:02:46]}  g6 {[%clk 0:02:44]} 8. Be3 {[%clk 0:02:40]}  Bg7 {[%clk 0:02:43]} 9. Be2 {[%clk 0:02:41]}  O-O {[%clk 0:02:43]} 10. O-O {[%clk 0:02:41]}  dxc4 {[%clk 0:02:43]} 11. Bxc4 {[%clk 0:02:42]}  Nfd5 {[%clk 0:02:40]} 12. Bg5 {[%clk 0:02:33]}  h6 {[%clk 0:02:34]} 13. Bh4 {[%clk 0:02:32]}  Be6 {[%clk 0:02:33]} 14. Bb3 {[%clk 0:02:25]}  Rc8 {[%clk 0:02:28]} 15. Rc1 {[%clk 0:02:22]}  Nf4 {[%clk 0:02:20]} 16. Bc2 {[%clk 0:02:04]}  Ncd5 {[%clk 0:02:15]} 17. Qd2 {[%clk 0:02:00]}  Qd7 {[%clk 0:01:10]} 18. Bg3 {[%clk 0:01:32]}  Nxc3 {[%clk 0:00:58]} 19. bxc3 {[%clk 0:01:32]}  Nd5 {[%clk 0:00:59]} 20. Bb3 {[%clk 0:01:29]}  Nb6 {[%clk 0:00:59]} 21. Rfe1 {[%clk 0:01:22]}  Nc4 {[%clk 0:00:58]} 22. Qe2 {[%clk 0:01:19]}  Rfe8 {[%clk 0:00:58]} 23. Ne5 {[%clk 0:01:14]}  Nxe5 {[%clk 0:00:57]} 24. Bxe5 {[%clk 0:01:15]}  Bxe5 {[%clk 0:00:47]} 25. Qxe5 {[%clk 0:01:16]}  Bc4 {[%clk 0:00:47]} 26. Re3 {[%clk 0:01:07]}  b5 {[%clk 0:00:42]} 27. Rg3 {[%clk 0:01:05]}  a6 {[%clk 0:00:36]} 28. Re1 {[%clk 0:01:05]}  Rc6 {[%clk 0:00:32]} 29. Qf4 {[%clk 0:00:58]}  Kg7 {[%clk 0:00:25]} 30. h4 {[%clk 0:00:47]}  Rf6 {[%clk 0:00:19]} 31. Qd2 {[%clk 0:00:30]}  Rc8 {[%clk 0:00:19]} 32. h5 {[%clk 0:00:27]}  g5 {[%clk 0:00:17]} 33. Bc2 {[%clk 0:00:22]}  Qd6 {[%clk 0:00:16]} 34. Bb1 {[%clk 0:00:21]}  Be6 {[%clk 0:00:13]} 35. Rge3 {[%clk 0:00:18]}  Qf4 {[%clk 0:00:11]} 36. Qe2 {[%clk 0:00:17]}  Bg4 {[%clk 0:00:09]} 37. f3 {[%clk 0:00:16]}  Be6 {[%clk 0:00:09]} 38. Re5 {[%clk 0:00:13]}  Rxc3 {[%clk 0:00:08]} 39. Qb2 {[%clk 0:00:12]}  Qxd4+ {[%clk 0:00:08]} 40. Kh2 {[%clk 0:00:11]}  Qh4+ {[%clk 0:00:09]} 41. Kg1 {[%clk 0:00:12]}  Qd4+ {[%clk 0:00:10]} 42. Kh2 {[%clk 0:00:12]}  b4 {[%clk 0:00:10]} 43. Qe2 {[%clk 0:00:09]}  Qh4+ {[%clk 0:00:11]} 44. Kg1 {[%clk 0:00:10]}  Qd4+ {[%clk 0:00:12]} 45. Kh2 {[%clk 0:00:09]}  Bc4 {[%clk 0:00:12]} 46. Qb2 {[%clk 0:00:07]}  Qh4+ {[%clk 0:00:13]} 47. Kg1 {[%clk 0:00:07]}  Qd4+ {[%clk 0:00:12]} 48. Kh2 {[%clk 0:00:07]}  e6 {[%clk 0:00:13]} 49. R5e4 {[%clk 0:00:06]}  Qd6+ {[%clk 0:00:13]} 50. Kg1 {[%clk 0:00:07]}  a5 {[%clk 0:00:13]} 51. Qf2 {[%clk 0:00:05]}  Bd5 {[%clk 0:00:13]} 52. R4e2 {[%clk 0:00:04]}  Qc5 {[%clk 0:00:13]} 53. Re3 {[%clk 0:00:03]}  Rxe3 {[%clk 0:00:12]} 54. Rxe3 {[%clk 0:00:04]}  Qd4 {[%clk 0:00:11]} 55. Kh2 {[%clk 0:00:04]}  Qh4+ {[%clk 0:00:11]} 56. Qxh4 {[%clk 0:00:04]}  gxh4 {[%clk 0:00:12]} 57. Kh3 {[%clk 0:00:02]}  Rf4 {[%clk 0:00:12]} 58. Re5 {[%clk 0:00:01]}  Kf6 {[%clk 0:00:12]} 59. Re2 {[%clk 0:00:01]}  Rd4 {[%clk 0:00:12]} 60. Rc2 {[%clk 0:00:01]}  Rd1 {[%clk 0:00:11]} 61. Rb2 {[%clk 0:00:01]}  Kg5 {[%clk 0:00:09]} 62. Kh2 {[%clk 0:00:01]}  Kf4 {[%clk 0:00:08]} 63. Bh7 {[%clk 0:00:01]}  Ke3 {[%clk 0:00:07]} 64. Bg8 {[%clk 0:00:01]}  Rd2 {[%clk 0:00:06]} 0-1


[Site "https://www.chess.com"]

[Event "Titled Tuesday Blitz November 08 Early 2022"]
[White "Levine, David"]
[Black "Aizpurua, Patrick Emilio"]
[WhiteFideId "2011611"]
[BlackFideId "6600522"]
[WhiteElo "2182"]
[BlackElo "2378"]
[Result "0-1"]
[Round "01"]
[TimeControl "180+1"]
[Date "2022.11.09"]
[WhiteClock "0:00:04"]
[BlackClock "0:00:15"]

1. d4 {[%clk 0:02:59]}  Nf6 {[%clk 0:02:59]} 2. c4 {[%clk 0:02:58]}  d6 {[%clk 0:02:59]} 3. g3 {[%clk 0:02:57]}  Nbd7 {[%clk 0:02:57]} 4. Nf3 {[%clk 0:02:56]}  g6 {[%clk 0:02:57]} 5. Bg2 {[%clk 0:02:56]}  Bg7 {[%clk 0:02:57]} 6. O-O {[%clk 0:02:56]}  O-O {[%clk 0:02:58]} 7. Nc3 {[%clk 0:02:55]}  a6 {[%clk 0:02:57]} 8. a4 {[%clk 0:02:48]}  c5 {[%clk 0:02:50]} 9. d5 {[%clk 0:02:44]}  Rb8 {[%clk 0:02:49]} 10. e4 {[%clk 0:02:42]}  Ne8 {[%clk 0:02:47]} 11. Qc2 {[%clk 0:02:36]}  Nc7 {[%clk 0:02:44]} 12. a5 {[%clk 0:02:33]}  b5 {[%clk 0:02:44]} 13. axb6 {[%clk 0:02:33]}  Rxb6 {[%clk 0:02:39]} 14. Ra2 {[%clk 0:02:21]}  Ne5 {[%clk 0:02:22]} 15. Nxe5 {[%clk 0:02:20]}  Bxe5 {[%clk 0:02:23]} 16. Bh6 {[%clk 0:02:11]}  Re8 {[%clk 0:02:22]} 17. f4 {[%clk 0:02:10]}  Bd4+ {[%clk 0:02:18]} 18. Kh1 {[%clk 0:02:10]}  e6 {[%clk 0:02:18]} 19. Bg5 {[%clk 0:01:48]}  Qd7 {[%clk 0:02:08]} 20. f5 {[%clk 0:01:45]}  exf5 {[%clk 0:01:29]} 21. exf5 {[%clk 0:01:43]}  f6 {[%clk 0:01:26]} 22. Bd2 {[%clk 0:01:33]}  gxf5 {[%clk 0:01:23]} 23. Bh3 {[%clk 0:01:28]}  Qf7 {[%clk 0:01:03]} 24. Bxf5 {[%clk 0:01:25]}  Bxf5 {[%clk 0:01:02]} 25. Qxf5 {[%clk 0:01:22]}  Re7 {[%clk 0:00:44]} 26. Ne4 {[%clk 0:01:07]}  Ne8 {[%clk 0:00:44]} 27. Bc3 {[%clk 0:00:51]}  Bxc3 {[%clk 0:00:39]} 28. Nxc3 {[%clk 0:00:51]}  Qg6 {[%clk 0:00:37]} 29. Qf3 {[%clk 0:00:41]}  Kg7 {[%clk 0:00:25]} 30. Ne2 {[%clk 0:00:38]}  Qe4 {[%clk 0:00:24]} 31. Nf4 {[%clk 0:00:38]}  Qxf3+ {[%clk 0:00:24]} 32. Rxf3 {[%clk 0:00:36]}  Re1+ {[%clk 0:00:23]} 33. Kg2 {[%clk 0:00:36]}  Re4 {[%clk 0:00:23]} 34. Ne6+ {[%clk 0:00:35]}  Kg6 {[%clk 0:00:22]} 35. b3 {[%clk 0:00:23]}  Re1 {[%clk 0:00:21]} 36. Rf1 {[%clk 0:00:19]}  Rxf1 {[%clk 0:00:19]} 37. Kxf1 {[%clk 0:00:19]}  Ng7 {[%clk 0:00:18]} 38. Nf4+ {[%clk 0:00:16]}  Kf7 {[%clk 0:00:16]} 39. Ra3 {[%clk 0:00:16]}  Nf5 {[%clk 0:00:16]} 40. Kg2 {[%clk 0:00:12]}  Nd4 {[%clk 0:00:15]} 41. Kh3 {[%clk 0:00:05]}  Nxb3 {[%clk 0:00:15]} 42. Kg4 {[%clk 0:00:04]}  Nd2 {[%clk 0:00:15]} 0-1


[Site "https://www.chess.com"]

[Event "Titled Tuesday Blitz November 08 Early 2022"]
[White "Lewtak, Damian"]
[Black "Roque Sola, Jose Luis"]
[WhiteFideId "1141724"]
[BlackFideId "5120390"]
[WhiteElo "2329"]
[BlackElo "2117"]
[Result "1-0"]
[Round "01"]
[TimeControl "180+1"]
[Date "2022.11.09"]
[WhiteClock "0:00:33"]
[BlackClock "0:00:05"]

1. b3 {[%clk 0:02:59]}  Nf6 {[%clk 0:02:56]} 2. Bb2 {[%clk 0:02:57]}  g6 {[%clk 0:02:53]} 3. g3 {[%clk 0:02:54]}  Bg7 {[%clk 0:02:53]} 4. Bg2 {[%clk 0:02:54]}  d5 {[%clk 0:02:46]} 5. e3 {[%clk 0:02:53]}  c6 {[%clk 0:02:41]} 6. Nf3 {[%clk 0:02:52]}  O-O {[%clk 0:02:39]} 7. O-O {[%clk 0:02:52]}  Nbd7 {[%clk 0:02:30]} 8. c4 {[%clk 0:02:52]}  Re8 {[%clk 0:02:24]} 9. Ne5 {[%clk 0:02:45]}  Nxe5 {[%clk 0:02:05]} 10. Bxe5 {[%clk 0:02:46]}  Bf5 {[%clk 0:01:58]} 11. d4 {[%clk 0:02:42]}  Qd7 {[%clk 0:01:44]} 12. Nd2 {[%clk 0:02:41]}  Bh3 {[%clk 0:01:40]} 13. Bxf6 {[%clk 0:02:32]}  Bxf6 {[%clk 0:01:35]} 14. Bxh3 {[%clk 0:02:30]}  Qxh3 {[%clk 0:01:35]} 15. cxd5 {[%clk 0:02:29]}  cxd5 {[%clk 0:01:34]} 16. Rc1 {[%clk 0:02:26]}  Rac8 {[%clk 0:01:33]} 17. Qf3 {[%clk 0:02:20]}  Qd7 {[%clk 0:01:15]} 18. Qe2 {[%clk 0:02:11]}  e6 {[%clk 0:01:13]} 19. Qd3 {[%clk 0:02:10]}  Rc6 {[%clk 0:01:12]} 20. b4 {[%clk 0:02:06]}  Rec8 {[%clk 0:01:11]} 21. Nb3 {[%clk 0:02:05]}  Rxc1 {[%clk 0:01:09]} 22. Rxc1 {[%clk 0:02:06]}  Rxc1+ {[%clk 0:01:09]} 23. Nxc1 {[%clk 0:02:06]}  Qa4 {[%clk 0:01:01]} 24. Qb3 {[%clk 0:02:01]}  Qc6 {[%clk 0:01:00]} 25. Nd3 {[%clk 0:01:58]}  b6 {[%clk 0:00:56]} 26. b5 {[%clk 0:01:54]}  Qc7 {[%clk 0:00:55]} 27. Kf1 {[%clk 0:01:46]}  Be7 {[%clk 0:00:53]} 28. Ke2 {[%clk 0:01:45]}  h5 {[%clk 0:00:49]} 29. h4 {[%clk 0:01:45]}  Kg7 {[%clk 0:00:42]} 30. Kd2 {[%clk 0:01:39]}  Bd6 {[%clk 0:00:42]} 31. a4 {[%clk 0:01:32]}  Qc8 {[%clk 0:00:40]} 32. Qc2 {[%clk 0:01:25]}  Qb8 {[%clk 0:00:30]} 33. Qc6 {[%clk 0:01:14]}  Bxg3 {[%clk 0:00:16]} 34. fxg3 {[%clk 0:01:15]}  Qxg3 {[%clk 0:00:16]} 35. Qd7 {[%clk 0:01:00]}  Qg2+ {[%clk 0:00:13]} 36. Kc3 {[%clk 0:00:57]}  Qa2 {[%clk 0:00:07]} 37. Qxa7 {[%clk 0:00:50]}  Qa3+ {[%clk 0:00:08]} 38. Kd2 {[%clk 0:00:50]}  Qa2+ {[%clk 0:00:07]} 39. Kc1 {[%clk 0:00:34]}  Qa1+ {[%clk 0:00:05]} 40. Kc2 {[%clk 0:00:33]} 1-0


[Site "https://www.chess.com"]

[Event "Titled Tuesday Blitz November 08 Early 2022"]
[White "Liang, Awonder"]
[Black "Ristic, Nebojsa B"]
[WhiteFideId "2056437"]
[BlackFideId "935468"]
[WhiteElo "2508"]
[BlackElo "2320"]
[Result "0-1"]
[Round "01"]
[TimeControl "180+1"]
[Date "2022.11.08"]
[WhiteClock "0:01:27"]
[BlackClock "0:00:34"]

1. e4 {[%clk 0:02:59]}  Nc6 {[%clk 0:02:57]} 2. Nf3 {[%clk 0:02:57]}  d6 {[%clk 0:02:55]} 3. d4 {[%clk 0:02:56]}  Nf6 {[%clk 0:02:53]} 4. Nc3 {[%clk 0:02:53]}  g6 {[%clk 0:02:53]} 5. h3 {[%clk 0:02:51]}  Bg7 {[%clk 0:02:54]} 6. Be3 {[%clk 0:02:52]}  O-O {[%clk 0:02:52]} 7. Qd2 {[%clk 0:02:53]}  a6 {[%clk 0:02:52]} 8. Bh6 {[%clk 0:02:50]}  b5 {[%clk 0:02:51]} 9. Bd3 {[%clk 0:02:51]}  e5 {[%clk 0:02:49]} 10. d5 {[%clk 0:02:47]}  Na5 {[%clk 0:02:44]} 11. Bxg7 {[%clk 0:02:41]}  Kxg7 {[%clk 0:02:45]} 12. O-O-O {[%clk 0:02:41]}  Bd7 {[%clk 0:02:23]} 13. g4 {[%clk 0:02:40]}  Nc4 {[%clk 0:02:23]} 14. Bxc4 {[%clk 0:02:39]}  bxc4 {[%clk 0:02:24]} 15. Qe2 {[%clk 0:02:36]}  Bb5 {[%clk 0:02:23]} 16. Nd2 {[%clk 0:02:35]}  c5 {[%clk 0:02:21]} 17. h4 {[%clk 0:02:26]}  h5 {[%clk 0:02:14]} 18. f3 {[%clk 0:02:26]}  Rb8 {[%clk 0:02:07]} 19. a4 {[%clk 0:02:23]}  Bd7 {[%clk 0:01:54]} 20. g5 {[%clk 0:02:23]}  Ne8 {[%clk 0:01:53]} 21. Nxc4 {[%clk 0:02:21]}  Rb4 {[%clk 0:01:52]} 22. b3 {[%clk 0:02:21]}  f5 {[%clk 0:01:30]} 23. Qd3 {[%clk 0:02:14]}  Qc7 {[%clk 0:01:24]} 24. Rhe1 {[%clk 0:02:13]}  f4 {[%clk 0:01:20]} 25. Kb2 {[%clk 0:01:57]}  Kf7 {[%clk 0:01:18]} 26. Ra1 {[%clk 0:01:58]}  Ke7 {[%clk 0:01:18]} 27. Reb1 {[%clk 0:01:53]}  Ng7 {[%clk 0:01:18]} 28. Kc1 {[%clk 0:01:54]}  Rfb8 {[%clk 0:01:18]} 29. Kd2 {[%clk 0:01:50]}  Bc8 {[%clk 0:01:17]} 30. a5 {[%clk 0:01:47]}  Bd7 {[%clk 0:01:12]} 31. Nb6 {[%clk 0:01:47]}  Rd4 {[%clk 0:01:11]} 32. Ne2 {[%clk 0:01:42]}  Rxd3+ {[%clk 0:01:09]} 33. Kxd3 {[%clk 0:01:43]}  Rxb6 {[%clk 0:01:01]} 34. axb6 {[%clk 0:01:43]}  Qxb6 {[%clk 0:01:02]} 35. c4 {[%clk 0:01:41]}  Ne8 {[%clk 0:00:59]} 36. Kc2 {[%clk 0:01:37]}  Nc7 {[%clk 0:00:56]} 37. Nc1 {[%clk 0:01:36]}  a5 {[%clk 0:00:51]} 38. Ra3 {[%clk 0:01:36]}  Qb4 {[%clk 0:00:47]} 39. Rba1 {[%clk 0:01:31]}  a4 {[%clk 0:00:44]} 40. bxa4 {[%clk 0:01:30]}  Qxc4+ {[%clk 0:00:44]} 41. Rc3 {[%clk 0:01:28]}  Bxa4+ {[%clk 0:00:41]} 42. Kd2 {[%clk 0:01:27]}  Qd4+ {[%clk 0:00:40]} 43. Nd3 {[%clk 0:01:27]}  Nb5 {[%clk 0:00:34]} 0-1


[Site "https://www.chess.com"]

[Event "Titled Tuesday Blitz November 08 Early 2022"]
[White "Luxama, Jacques Muller"]
[Black "Gurevich, Dmitry"]
[WhiteFideId "11900113"]
[BlackFideId "2000407"]
[WhiteElo "1931"]
[BlackElo "2506"]
[Result "0-1"]
[Round "01"]
[TimeControl "180+1"]
[Date "2022.11.09"]
[WhiteClock "0:00:28"]
[BlackClock "0:00:39"]

1. d4 {[%clk 0:03:00]}  Nf6 {[%clk 0:02:58]} 2. c4 {[%clk 0:02:52]}  a6 {[%clk 0:02:58]} 3. Nc3 {[%clk 0:02:51]}  c5 {[%clk 0:02:58]} 4. dxc5 {[%clk 0:02:50]}  e6 {[%clk 0:02:57]} 5. Nf3 {[%clk 0:02:49]}  Bxc5 {[%clk 0:02:56]} 6. e3 {[%clk 0:02:49]}  O-O {[%clk 0:02:55]} 7. Be2 {[%clk 0:02:48]}  b6 {[%clk 0:02:55]} 8. O-O {[%clk 0:02:49]}  Bb7 {[%clk 0:02:55]} 9. a3 {[%clk 0:02:49]}  Qc7 {[%clk 0:02:55]} 10. b4 {[%clk 0:02:48]}  Be7 {[%clk 0:02:55]} 11. Bb2 {[%clk 0:02:48]}  d6 {[%clk 0:02:55]} 12. Rc1 {[%clk 0:02:48]}  Nbd7 {[%clk 0:02:55]} 13. Qb3 {[%clk 0:02:42]}  Rac8 {[%clk 0:02:54]} 14. Rfd1 {[%clk 0:02:37]}  Qb8 {[%clk 0:02:54]} 15. h3 {[%clk 0:02:32]}  Rfe8 {[%clk 0:02:49]} 16. Rc2 {[%clk 0:02:27]}  Nf8 {[%clk 0:02:47]} 17. Rcd2 {[%clk 0:02:27]}  Red8 {[%clk 0:02:45]} 18. Na4 {[%clk 0:02:20]}  Ba8 {[%clk 0:02:43]} 19. Nd4 {[%clk 0:02:11]}  Ng6 {[%clk 0:02:41]} 20. Bf3 {[%clk 0:02:10]}  Bxf3 {[%clk 0:02:28]} 21. Nxf3 {[%clk 0:02:11]}  b5 {[%clk 0:02:20]} 22. cxb5 {[%clk 0:02:11]}  axb5 {[%clk 0:02:19]} 23. Nc3 {[%clk 0:02:08]}  d5 {[%clk 0:01:58]} 24. Nd4 {[%clk 0:02:07]}  Ne4 {[%clk 0:01:56]} 25. Nxe4 {[%clk 0:02:05]}  dxe4 {[%clk 0:01:55]} 26. g3 {[%clk 0:01:52]}  Ne5 {[%clk 0:01:54]} 27. Kg2 {[%clk 0:01:44]}  Bf6 {[%clk 0:01:42]} 28. Ne2 {[%clk 0:01:35]}  Nc4 {[%clk 0:01:29]} 29. Rxd8+ {[%clk 0:01:33]}  Rxd8 {[%clk 0:01:27]} 30. Bxf6 {[%clk 0:01:34]}  gxf6 {[%clk 0:01:20]} 31. Nc3 {[%clk 0:01:24]}  Rxd1 {[%clk 0:01:05]} 32. Nxd1 {[%clk 0:01:19]}  Qd6 {[%clk 0:00:58]} 33. Nc3 {[%clk 0:01:19]}  Qd3 {[%clk 0:00:55]} 34. g4 {[%clk 0:01:07]}  f5 {[%clk 0:00:55]} 35. gxf5 {[%clk 0:01:05]}  exf5 {[%clk 0:00:55]} 36. h4 {[%clk 0:00:56]}  Nd2 {[%clk 0:00:49]} 37. Qb2 {[%clk 0:00:44]}  f4 {[%clk 0:00:46]} 38. Nxb5 {[%clk 0:00:31]}  Qf1+ {[%clk 0:00:41]} 39. Kh2 {[%clk 0:00:28]}  Nf3# {[%clk 0:00:39]} 0-1


[Site "https://www.chess.com"]